Cogmind - Beta 14 @@@ ROGUE MODE // 2025.01.17 @ 18:22:52 Player: Longball Result: Destroyed by P-70 Sage with Tesla Rifle Performance ------------- Evolutions (6) 3000 Regions Visited (9) 1800 Robots Destroyed (128) 640 Value Destroyed (4822) 4822 Prototype IDs (9) 180 Alien Tech Used (0) 0 Bonus (1093) 1093 TOTAL SCORE: 11535 Bonus ------- High Alert Combat Kills 394 Follower Combat Kills 719 Friendly Fire -20 Cogmind --------- Core Integrity 0/1150 Matter 27/300 Energy 100/100 System Corruption 17% Temperature Cool (0) Movement Core (100) Ox1 Location -4/Factory Parts ------- > --- POWER (2) -------- (None) > --- PROPULSION (7) --- (None) > --- UTILITY (5) ------ (None) > --- WEAPON (5) ------- Great Axe > --- INVENTORY (5) ---- Light Antimatter Reactor Large Storage Unit Heavy Plasma Cannon Tiamat Missile Launcher Peak State ------------ > --- POWER ------------ Heavy Deuterium Engine Cooled Fission Core > --- PROPULSION ------- Experimental Biometal Medium Treads Myomer Leg Wheel Wheel Compact Wheel Compact Wheel Compact Wheel > --- UTILITY ---------- Improved Cooling System Improved Cooling System Large Storage Unit Hacking Suite Hacking Suite > --- WEAPON ----------- Plasma Rifle Heavy Ion Cannon Railgun Railgun Great Axe > --- INVENTORY -------- Light Antimatter Reactor Light Antimatter Reactor Armored Treads Flexi-carbon Leg Large Storage Unit Large Battery Advanced Gravity Neutralizer Improved Signal Interpreter Tesla Rifle Heavy Plasma Cannon Enhanced Gauss Cannon Enhanced Gauss Cannon Hardcell Cannon Heavy Missile Launcher Plasma Cutter [Rating: 83] Favorites ----------- Power Heavy Deuterium Engine Engine Heavy Deuterium Engine Power Core Cooled Fission Core Reactor Light Antimatter Reactor Propulsion Light Treads Treads Light Treads Leg Carbon-fiber Leg Wheel Compact Wheel Utility Hacking Suite Device Advanced Heat Sink Storage Large Storage Unit Processor Targeting Computer Hackware Hacking Suite Protection Reactive Plating Weapon Plasma Rifle Energy Gun Plasma Rifle Energy Cannon Heavy Ion Cannon Ballistic Gun Gauss Rifle Ballistic Cannon Enhanced Gauss Cannon Launcher Heavy Missile Launcher Slashing Weapon Great Axe Build | -11 -10 -9 -8 -7 -6 -5 -4 -4 -4 ------- Run | Yrd Mat Mat Mat Fac Fac Fac Fac Was Fac Slots Evolved 12 | . . 2 2 2 2 2 2 . . Power 1 | . . . . . . 1 . . . Propulsion 5 | . . 2 1 1 1 . . . . Utility 3 | . . . 1 . . 1 1 . . Weapon 3 | . . . . 1 1 . 1 . . Parts Attached 142 | 7 16 16 15 10 3 22 23 4 26 Power 8 | 1 1 . 2 . . 2 1 . 1 Engine 6 | 1 1 . 2 . . 2 . . . Core 1 | . . . . . . . 1 . . Reactor 1 | . . . . . . . . . 1 Propulsion 58 | 2 7 11 4 8 2 4 11 2 7 Treads 20 | . 5 6 4 . . . 2 2 1 Leg 31 | 2 2 5 . 8 2 4 4 . 4 Wheel 7 | . . . . . . . 5 . 2 Hover . | . . . . . . . . . . Flight . | . . . . . . . . . . Utility 19 | 2 5 1 5 . . 2 1 2 1 Device 9 | 1 3 . . . . 1 1 2 1 Storage 2 | 1 1 . . . . . . . . Processor 1 | . 1 . . . . . . . . Hackware 4 | . . . 3 . . 1 . . . Protection 3 | . . 1 2 . . . . . . Artifact . | . . . . . . . . . . Weapon 57 | 2 3 4 4 2 1 14 10 . 17 Energy Gun 10 | 1 1 1 3 1 . 1 1 . 1 Energy Cannon 7 | . 1 1 . . . 1 2 . 2 Ballistic Gun 16 | 1 1 2 . 1 . 6 3 . 2 Ballistic Cannon 10 | . . . . . 1 1 1 . 7 Launcher 11 | . . . 1 . . 5 2 . 3 Special Weapon . | . . . . . . . . . . Impact Weapon . | . . . . . . . . . . Slashing Weapon 3 | . . . . . . . 1 . 2 Piercing Weapon . | . . . . . . . . . . Special Melee Weapon . | . . . . . . . . . . Unidentified Prototypes 9 | . 1 1 2 . . . 1 1 3 Corrupted Parts 2 | . . . 2 . . . . . . System Corruption 5 | . . . 5 . . . . . . Parts Lost 44 | . . 2 1 . . 3 11 . 27 Power 4 | . . . . . . 2 . . 2 Propulsion 25 | . . 1 . . . 1 9 . 14 Utility 6 | . . . 1 . . . . . 5 Weapon 9 | . . 1 . . . . 2 . 6 Highest Loss Streak 14 | . . 1 1 . . 3 5 . 14 To Critical Strikes 2 | . . . . . . . . . 2 Average Slot Usage (%) 92 | . 99 99 97 97 100 98 90 100 69 Engine 8 | . 14 11 8 7 6 10 9 5 2 Treads 14 | . 14 36 42 11 . . 3 5 2 Leg 17 | . 12 7 . 31 46 40 25 5 7 Wheel 3 | . . . . . . . 2 26 12 Device 4 | . 2 . . . . 3 10 10 7 Storage 7 | . 14 11 9 7 6 5 5 5 4 Processor 1 | . 11 3 . . . . . . . Hackware 8 | . . . 9 15 13 12 10 10 7 Protection 2 | . . 7 7 . . . . . . Energy Gun 6 | . . 3 13 15 13 6 3 5 3 Energy Cannon 5 | . 13 7 . . . 3 7 5 3 Ballistic Gun 6 | . 14 11 4 7 6 4 3 10 4 Ballistic Cannon 2 | . . . . . 6 5 4 . 6 Peak Build Rating 83 | 7 13 18 31 47 55 69 82 83 81 Average Rating 45 | 5 11 16 24 42 53 62 74 75 61 On Entrance 39 | . 7 13 18 31 47 55 69 76 75 Naked Turns . | . . . . . . . . . . Heaviest Build 86 | 14 35 45 54 43 50 66 80 77 86 Greatest Support 114 | 20 46 80 103 103 114 114 114 68 83 Greatest Overweight (x) 5 | . 1 1 . . . . 4 1 5 Average Overweight (x) . | . . . . . . . . 1 . Largest Inventory Capacity 15 | 8 15 15 15 15 15 15 15 15 15 Average Capacity 14 | 7 11 15 15 15 15 15 15 15 13 Most Carried 15 | 6 15 15 15 15 15 15 15 15 15 Average Carried 13 | 4 9 14 14 14 14 14 13 14 12 Final Capacity 15 | 8 15 15 15 15 15 15 15 15 5 Final Carried 15 | 6 15 15 15 15 15 14 15 14 4 Class Distribution -------------------- 39% | Scavenger-Gunner 37% | Mutant 15% | Hacker-Gunner 4% | Hacker-Mutant Dominant Class ---------------- Mutant | -10/Materials Mutant | -9/Materials Mutant | -8/Materials Hacker-Gunner | -7/Factory Hacker-Gunner | -6/Factory Scavenger-Gunner | -5/Factory Scavenger-Gunner | -4/Factory Scavenger-Gunner | -4/Waste Scavenger-Gunner | -4/Factory Resources | -11 -10 -9 -8 -7 -6 -5 -4 -4 -4 ----------- Run | Yrd Mat Mat Mat Fac Fac Fac Fac Was Fac Matter Collected 3158 | 275 280 385 253 123 174 541 599 20 508 Remotely 10 | 10 . . . . . . . . . Salvage Created 4493 | 103 473 934 520 59 110 629 1003 . 662 Parts 250 | 7 30 54 36 . . 42 50 . 31 Haulers Intercepted . | . . . . . . . . . . Recyclers Shooed 7 | 1 1 3 . . . 2 . . . Parts Field Recycled . | . . . . . . . . . . Retrieved Matter . | . . . . . . . . . . Parts Self-Destructed . | . . . . . . . . . . Prevented . | . . . . . . . . . . Kills | -11 -10 -9 -8 -7 -6 -5 -4 -4 -4 ------- Run | Yrd Mat Mat Mat Fac Fac Fac Fac Was Fac Combat Hostiles Destroyed 105 | . 10 18 14 1 2 14 24 . 22 Melee 1 | . . . . . . . . . 1 Guns 29 | . 4 5 8 1 1 2 4 . 4 Cannons 38 | . 6 10 . . 1 2 13 . 6 AOE 37 | . . 3 6 . . 10 7 . 11 Classes Destroyed 16 | 2 3 4 2 . . 2 1 . 2 Worker 6 | . 1 1 . . . 2 2 . . Builder 1 | . . . . . . . 1 . . Tunneler 1 | 1 . . . . . . . . . Recycler 4 | 1 . 1 . . . 1 1 . . Mechanic 1 | . . . . . . . . . 1 Operator 3 | . 2 . 1 . . . . . . Watcher 7 | . . 2 2 . . 2 1 . . Swarmer 38 | . . . 9 . . 5 14 . 10 Saboteur 1 | . . . . . . 1 . . . Grunt 41 | . 10 12 2 1 2 5 2 . 7 Brawler 2 | . . 1 . . . . . . 1 Duelist 1 | . . 1 . . . . . . . Sentry 7 | . . 4 2 . . . . . 1 Demolisher 1 | . . . . . . . . . 1 Hunter 7 | . . . 1 . . 2 2 . 2 Programmer 7 | . . . . . . 1 6 . . Best Kill Streak 12 | 2 4 6 4 1 2 7 12 . 5 Combat Bots Only 8 | . 3 5 4 1 2 6 8 . 5 Max Kills in Single Turn 5 | 1 2 3 3 1 1 3 4 . 5 Gunslinging . | . . . . . . . . . . Exploded 5 | . . 2 2 . . 3 4 . 5 Melee 1 | . . . . . . . . . 1 Uniques/NPCs Destroyed . | . . . . . . . . . . Combat | -11 -10 -9 -8 -7 -6 -5 -4 -4 -4 -------- Run | Yrd Mat Mat Mat Fac Fac Fac Fac Was Fac Hostile Shots Fired 748 | . 33 69 56 1 57 77 161 2 292 Missed 225 | . 13 8 16 . 24 28 53 1 82 Damage Taken 9585 | . 242 900 505 13 314 1005 1828 16 4762 Core 1506 | . 69 132 93 . 15 40 173 . 984 Absorbed by Shields . | . . . . . . . . . . Ignored by Resistances 114 | . . 34 80 . . . . . . Regen/Repaired (Parts) 409 | . 36 . . . . . . 110 263 Core Remaining (%) 88 | 100 72 67 83 100 98 96 . . . Volleys Fired 237 | 5 30 56 27 1 9 30 43 . 36 Largest 5 | 2 2 2 2 3 4 4 4 . 5 Hottest 362 | 70 91 91 113 141 195 243 307 . 362 Shots Fired 644 | 10 60 109 53 3 30 85 151 . 143 Gun 327 | 10 30 67 52 3 21 42 54 . 48 Cannon 302 | . 30 42 . . 9 34 94 . 93 Launcher 15 | . . . 1 . . 9 3 . 2 Special . | . . . . . . . . . . Kinetic 315 | 5 30 61 21 1 18 41 57 . 81 Thermal 250 | 5 30 42 5 1 8 23 76 . 60 Explosive 15 | . . . 1 . . 9 3 . 2 Electromagnetic 64 | . . 6 26 1 4 12 15 . . Robot Hit Streak 16 | 3 10 10 7 1 9 16 7 . 16 Robot Miss Streak 4 | 1 4 3 3 1 2 3 4 . 4 Penetration Max 2 | . . . . . . . 2 . 1 Secondary Targets 1 | . . . 1 . . . . . . Max Gunslinging Chain 1 | . . . 1 . . . . . . Shots Hit Robots 385 | 5 35 68 36 2 23 44 78 . 94 Core Hits 212 | 4 16 31 27 1 9 31 45 . 48 Critical Kills . | . . . . . . . . . . Critical Parts Destroyed . | . . . . . . . . . . Critical Strikes 19 | . . . . . 1 1 8 . 9 Burn 3 | . . . . . . . 2 . 1 Blast 15 | . . . . . 1 1 6 . 7 Sever 1 | . . . . . . . . . 1 Melee Attacks 22 | . . . . . . . 4 . 18 Impact . | . . . . . . . . . . Slashing 22 | . . . . . . . 4 . 18 Piercing . | . . . . . . . . . . Sneak Attacks 3 | . . . . . . . 3 . . Combat Hostiles . | . . . . . . . . . . Follow-up Attacks . | . . . . . . . . . . Damage Inflicted 13167 | 63 688 1436 768 45 507 2327 3144 . 4189 Guns 3904 | 63 264 678 525 31 311 586 676 . 770 Cannons 5071 | . 424 574 . . 196 514 1520 . 1843 Explosions 3402 | . . 184 243 . . 1227 681 . 1067 Melee 764 | . . . . . . . 255 . 509 Ramming 26 | . . . . 14 . . 12 . . Kinetic 4684 | 24 264 602 134 19 316 647 1003 . 1675 Thermal 4012 | 39 424 758 208 . 116 324 995 . 1148 Explosive 2802 | . . . 68 . . 1196 681 . 857 Electromagnetic 879 | . . 76 358 12 75 160 198 . . Impact . | . . . . . . . . . . Slashing 764 | . . . . . . . 255 . 509 Piercing . | . . . . . . . . . . Highest Corruption 16 | . . . 5 . . . 4 4 16 Average Corruption 3 | . . . 3 . . . 1 4 5 Corruption Purged . | . . . . . . . . . . Corruption Blocked . | . . . . . . . . . . Effects 43 | . . . 13 . . . 7 3 20 Message Errors 11 | . . . 4 . . . . 2 5 Matter Fused 15 | . . . 3 . . . 5 . 7 Heat Flow Errors 4 | . . . 2 . . . . . 2 Energy Discharges 5 | . . . 3 . . . . 1 1 Data Loss (minor) 3 | . . . . . . . . . 3 Data Loss (major) 2 | . . . 1 . . . . . 1 Alerts 2 | . . . . . . . 1 . 1 Weapon Failures 1 | . . . . . . . 1 . . Overload Shots . | . . . . . . . . . . Overflow Damage 320 | . 5 47 28 . . 28 118 . 94 Projectiles 94 | . 5 . . . . 9 57 . 23 Explosions 162 | . . 47 28 . . 19 22 . 46 Melee 64 | . . . . . . . 39 . 25 Knockbacks 19 | . . . . 1 . 4 4 . 10 Impact 1 | . . . . 1 . . . . . Kinetic 18 | . . . . . . 4 4 . 10 Secondary . | . . . . . . . . . . Self-Inflicted Damage 487 | . . 132 148 . . 38 . . 169 Shots 9 | . . 2 4 . . 1 . . 2 Rammed 1 | . . . . . . . 1 . . Targets Rammed 3 | . . . . 1 . . 2 . . Kicked 2 | . . . . 1 . . 1 . . Crushed . | . . . . . . . . . . Highest Temperature 389 | 70 278 343 273 60 389 278 332 . 294 Average Temperature 104 | 36 93 133 61 32 150 96 114 . 93 Received Heat Transfer 1809 | . 153 345 72 9 54 379 106 . 691 Effects 9 | . 3 1 . . 2 . 3 . . Shutdowns 1 | . . . . . 1 . . . . Energy Bleed 1 | . . 1 . . . . . . . Interference 6 | . 3 . . . . . 3 . . Matter Decay 1 | . . . . . 1 . . . . Siege Activations . | . . . . . . . . . . Robots Corrupted . | . . . . . . . . . . Combat Hostiles . | . . . . . . . . . . Parts Fried 1 | . . 1 . . . . . . . Impact Corruptions . | . . . . . . . . . . Robots Melted . | . . . . . . . . . . Combat Hostiles . | . . . . . . . . . . Parts Melted 10 | . . 1 1 1 . . 6 . 1 Heat Transferred 6556 | 111 777 1186 274 . 222 685 1790 . 1511 Parts Sabotaged . | . . . . . . . . . . Parts Stolen . | . . . . . . . . . . Parts Stripped . | . . . . . . . . . . Power Chain Reactions 7 | . . 2 4 . . 1 . . . Alert | -11 -10 -9 -8 -7 -6 -5 -4 -4 -4 ------- Run | Yrd Mat Mat Mat Fac Fac Fac Fac Was Fac Peak Influence 846 | 10 259 555 508 218 271 523 493 186 846 Initial 256 | . 6 109 234 186 . 132 256 136 130 Average 295 | 2 80 341 431 88 104 356 294 162 495 Maximum Alert Level 3 | . 1 2 2 1 1 2 2 . 3 Low Security (%) 33 | 100 89 17 . 96 73 10 15 100 3 Level 1 35 | . 10 56 28 3 26 48 69 . 18 Level 2 30 | . . 25 71 . . 40 14 . 74 Level 3 . | . . . . . . . . . 2 Level 4 . | . . . . . . . . . . Level 5 . | . . . . . . . . . . High Security . | . . . . . . . . . . Max Security . | . . . . . . . . . . Squads Dispatched 19 | . 2 3 4 1 1 1 2 . 5 Investigation 5 | . 1 . 3 . . . . . 1 Extermination 4 | . . . . 1 . . 2 . 1 Reinforcement 7 | . 1 3 1 . 1 . . . 1 Assault 2 | . . . . . . 1 . . 1 Garrison 1 | . . . . . . . . . 1 Intercept . | . . . . . . . . . . Searches Triggered . | . . . . . . . . . . Construction Impeded 1 | . . . . . . . . . 1 Haulers Reinforced . | . . . . . . . . . . Active Scanning Responses . | . . . . . . . . . . Cargo Convoy Interrupts . | . . . . . . . . . . Stealth | -11 -10 -9 -8 -7 -6 -5 -4 -4 -4 --------- Run | Yrd Mat Mat Mat Fac Fac Fac Fac Was Fac Distress Signals 7 | . 2 1 . . . . 2 . 2 Communications Jammed . | . . . . . . . . . . Distress Signals . | . . . . . . . . . . Times Spotted 170 | . 19 24 20 6 5 23 34 1 38 Peak Tracking Total 8 | . 6 5 3 2 3 7 8 1 8 Tactical Retreats 7 | . 1 1 1 . . 1 1 . 2 Traps | -11 -10 -9 -8 -7 -6 -5 -4 -4 -4 ------- Run | Yrd Mat Mat Mat Fac Fac Fac Fac Was Fac Traps Triggered 8 | . 1 . . 1 1 1 2 . 2 Indirectly . | . . . . . . . . . . Trap Hack Attempts . | . . . . . . . . . . Triggered . | . . . . . . . . . . Disarmed . | . . . . . . . . . . Reprogrammed . | . . . . . . . . . . Reused . | . . . . . . . . . . Traps Extracted . | . . . . . . . . . . Installed . | . . . . . . . . . . Triggered . | . . . . . . . . . . Machines | -11 -10 -9 -8 -7 -6 -5 -4 -4 -4 ---------- Run | Yrd Mat Mat Mat Fac Fac Fac Fac Was Fac Machines Disabled 21 | . 4 1 2 . 7 4 . . 3 Max in Single Turn 3 | . 1 1 1 . 3 1 . . 2 Machines Repaired . | . . . . . . . . . . Machines Dismantled . | . . . . . . . . . . Machines Sabotaged . | . . . . . . . . . . Overloaded Fab Kills . | . . . . . . . . . . Hacking | -11 -10 -9 -8 -7 -6 -5 -4 -4 -4 --------- Run | Yrd Mat Mat Mat Fac Fac Fac Fac Was Fac Machines Accessed 24 | . 5 3 4 4 1 1 2 . 4 Terminals 18 | . 4 3 4 2 1 . . . 4 Fabricators 2 | . . . . 1 . . 1 . . Repair Stations 3 | . 1 . . . . 1 1 . . Recycling Units . | . . . . . . . . . . Scanalyzers . | . . . . . . . . . . Garrison Access 1 | . . . . 1 . . . . . Total Hacks 71 | . 15 13 16 13 2 1 4 . 7 Successful 32 | . 8 6 7 3 1 1 2 . 4 Failed 39 | . 7 7 9 10 1 . 2 . 3 Catastrophic 4 | . 2 2 . . . . . . . Database Lockouts . | . . . . . . . . . . Manual 29 | . 8 7 10 3 . . . . 1 Terminals 60 | . 13 13 16 9 2 . . . 7 Fabricators 3 | . . . . 1 . . 2 . . Repair Stations 5 | . 2 . . . . 1 2 . . Recycling Units . | . . . . . . . . . . Scanalyzers . | . . . . . . . . . . Garrison Access 3 | . . . . 3 . . . . . Terminal Hacks 17 | . 3 3 3 3 1 . . . 4 Open DSF 1 | . . . . . . . . . 1 Branch Access Points 1 | . . . . . . . . . 1 Emergency Access Points 1 | . . . . 1 . . . . . Machine Index 1 | . . . . . 1 . . . . Terminal Index 1 | . . . . . . . . . 1 Alert Level 5 | . 1 1 2 . . . . . 1 Unreport Threat 1 | . . . . 1 . . . . . Locate Traps 2 | . . 1 . 1 . . . . . Zone Layout 4 | . 2 1 1 . . . . . . Fabricator Hacks 1 | . . . . . . . 1 . . Network Status 1 | . . . . . . . 1 . . Repair Station Hacks 4 | . 2 . . . . 1 1 . . Scan Component 2 | . 1 . . . . . 1 . . Repair 1 | . 1 . . . . . . . . Refit 1 | . . . . . . 1 . . . Recycling Unit Hacks . | . . . . . . . . . . Scanalyzer . | . . . . . . . . . . Garrison Access Hacks . | . . . . . . . . . . Unauthorized Hacks 10 | . 3 3 4 . . . . . . Terminals 10 | . 3 3 4 . . . . . . Track 4 | . 1 1 2 . . . . . . Botnet 6 | . 2 2 2 . . . . . . Fabricators . | . . . . . . . . . . Repair Stations . | . . . . . . . . . . Recycling Units . | . . . . . . . . . . Scanalyzers . | . . . . . . . . . . Garrison Access . | . . . . . . . . . . Data Cores Recovered . | . . . . . . . . . . Used . | . . . . . . . . . . Hacking Detections 20 | . 4 3 3 3 1 1 2 . 3 Full Trace Events 1 | . . . . . . . . . 1 Feedback Events . | . . . . . . . . . . Feedback Blocked . | . . . . . . . . . . Robot Schematics Acquired . | . . . . . . . . . . Robots Built . | . . . . . . . . . . Authchips . | . . . . . . . . . . Time . | . . . . . . . . . . Total Robot Build Rating . | . . . . . . . . . . Part Schematics Acquired . | . . . . . . . . . . Parts Built . | . . . . . . . . . . Authchips . | . . . . . . . . . . Time . | . . . . . . . . . . Total Part Build Rating . | . . . . . . . . . . Parts Repaired 1 | . 1 . . . . . . . . Time 26 | . 26 . . . . . . . . Parts Recycled . | . . . . . . . . . . Recycled Matter . | . . . . . . . . . . Retrieved Matter . | . . . . . . . . . . Retrieved Components . | . . . . . . . . . . Parts Scanalyzed . | . . . . . . . . . . Part Schematics Acquired . | . . . . . . . . . . Parts Damaged . | . . . . . . . . . . Bothacking | -11 -10 -9 -8 -7 -6 -5 -4 -4 -4 ------------ Run | Yrd Mat Mat Mat Fac Fac Fac Fac Was Fac Used RIF Installer . | . . . . . . . . . . Robots Hacked . | . . . . . . . . . . Non-combat . | . . . . . . . . . . Combat . | . . . . . . . . . . Robot Hacks Applied . | . . . . . . . . . . Relay Couplers Released . | . . . . . . . . . . Fabnet Peak Effective % . | . . . . . . . . . . Robots Rewired . | . . . . . . . . . . Allies Hacked . | . . . . . . . . . . Hacks Repelled . | . . . . . . . . . . Allies | -11 -10 -9 -8 -7 -6 -5 -4 -4 -4 -------- Run | Yrd Mat Mat Mat Fac Fac Fac Fac Was Fac Total Allies 23 | . . . . 3 . . . 20 . Largest Group 20 | . . . . 3 3 3 . 20 19 Highest-Rated Group 786 | . . . . 93 93 93 . 786 759 Highest-Rated Ally 50 | . . . . 31 31 31 . 50 50 Total Orders . | . . . . . . . . . . Ally Attacks 176 | . . . . 4 32 48 . 6 86 Total Damage 3668 | . . . . 20 399 677 . 170 2402 Kills 16 | . . . . . 1 4 . 1 10 Allies Corrupted 2 | . . . . . . . . . 2 Allies Melted . | . . . . . . . . . . Intel | -11 -10 -9 -8 -7 -6 -5 -4 -4 -4 ------- Run | Yrd Mat Mat Mat Fac Fac Fac Fac Was Fac Robot Analysis Total . | . . . . . . . . . . Derelict Logs Recovered . | . . . . . . . . . . Drone Launches . | . . . . . . . . . . Drone Recoveries . | . . . . . . . . . . Exploration | -11 -10 -9 -8 -7 -6 -5 -4 -4 -4 ------------- Run | Yrd Mat Mat Mat Fac Fac Fac Fac Was Fac Turns Passed 6171 | 98 625 770 892 555 246 675 1247 246 817 Spaces Moved 3669 | 58 331 339 442 376 165 449 750 192 567 Core 119 | 5 . . . . . . . . 114 Treads 1077 | . 150 291 442 98 . . 96 . . Legs 1822 | 53 181 48 . 278 165 449 527 . 121 Wheels 651 | . . . . . . . 127 192 332 Hover . | . . . . . . . . . . Flight . | . . . . . . . . . . Fastest Speed 50 | 50 120 120 160 118 120 118 107 107 50 Average Speed 129 | 113 138 154 160 130 120 118 134 107 100 Slowest Speed 410 | 120 240 190 162 162 120 120 410 107 330 Overloaded Moves . | . . . . . . . . . . Propulsion Burnouts . | . . . . . . . . . . Robots Hopped . | . . . . . . . . . . Cave-ins Triggered . | . . . . . . . . . . Exploration Rate (%) 29 | 4 46 43 53 14 6 12 16 85 20 Regions Visited 9 Branch Regions . Pre-discovered Areas . | . . . . . . . . . . Known Exits Taken . | . . . . . . . . . . Unknown Exits Taken 7 | 1 1 1 1 1 1 1 . . . Scrap Searched . | . . . . . . . . . . Spaces Dug 9 | . . . . . . . 8 . 1 Terrain Destroyed 315 | . . 32 34 . 39 51 51 . 108 Melee 1 | . . . . . . . . . 1 Projectile 75 | . . . . . 2 4 30 . 39 AOE 239 | . . 32 34 . 37 47 21 . 68 Terrain Rammed . | . . . . . . . . . . Walls Destroyed . | . . . . . . . . . . Machines Disabled . | . . . . . . . . . . Actions | -11 -10 -9 -8 -7 -6 -5 -4 -4 -4 --------- Run | Yrd Mat Mat Mat Fac Fac Fac Fac Was Fac Total 4564 | 77 444 490 588 439 191 526 881 234 694 Wait 344 | 2 42 61 70 39 14 17 39 34 26 Move 3661 | 57 330 338 441 375 164 448 750 191 567 Hop . | . . . . . . . . . . Pick Up 62 | 6 13 8 13 6 1 1 9 . 5 Fast Attach 56 | 7 5 6 9 . . 5 9 2 13 Attach 31 | . . 3 1 2 2 2 10 1 10 Detach 19 | . 2 1 2 . . 1 6 1 6 Swap 55 | . 11 7 5 8 1 15 4 1 3 Drop 73 | . 11 10 20 7 . 7 4 4 10 Fire 237 | 5 30 56 27 1 9 30 43 . 36 Melee 22 | . . . . . . . 4 . 18 Ram . | . . . . . . . . . . Kick 2 | . . . . 1 . . 1 . . Crush 1 | . . . . . . . 1 . . Escape Stasis 1 | . . . . . . . 1 . . Rewire . | . . . . . . . . . . Trap . | . . . . . . . . . . Miscellaneous . | . . . . . . . . . . Route ------- -11/Scrapyard -10/Materials -9/Materials (discovered 2 exits: *Mat / [*Min]) -8/Materials -7/Factory -6/Factory -5/Factory -4/Factory -4/Waste -4/Factory (discovered 2 exits: Upp x2) History --------- Turn | Location | Event 2 | -11/Scrapyard | Discovered new exit (range 16) 99 | -11/Scrapyard | Entered Materials 304 | -10/Materials | Build established: Mutant 398 | -10/Materials | Discovered new exit (range 15) 668 | -10/Materials | Repaired Lgt. Treads 724 | -10/Materials | Entered another Materials area 724 | -9/Materials | Evolved 2 slots: Propulsion x2 993 | -9/Materials | Discovered new exit (range 12) 1376 | -9/Materials | Discovered new exit (range 11) 1494 | -9/Materials | Entered another Materials area 1494 | -8/Materials | Evolved 2 slots: Propulsion x1, Utility x1 1906 | -8/Materials | Met 7R-MNS 2358 | -8/Materials | Discovered new exit (range 16) 2386 | -8/Materials | Entered Factory 2386 | -7/Factory | Evolved 2 slots: Propulsion x1, Weapon x1 2387 | -7/Factory | Caught up to 7R-MNS 2705 | -7/Factory | Allied Derelicts emerged from ambush trap array 2889 | -7/Factory | Build established: Hacker-Gunner 2920 | -7/Factory | Discovered new exit (range 12) 2941 | -7/Factory | Entered another Factory area 2941 | -6/Factory | Accompanied by 3 allies 2941 | -6/Factory | Evolved 2 slots: Propulsion x1, Weapon x1 2942 | -6/Factory | Caught up to 7R-MNS 3173 | -6/Factory | Discovered new exit (range 10) 3187 | -6/Factory | Entered another Factory area 3187 | -5/Factory | Accompanied by 3 allies 3187 | -5/Factory | Evolved 2 slots: Power x1, Utility x1 3487 | -5/Factory | First assault squad dispatched 3527 | -5/Factory | Spotted B-75 Beast 3755 | -5/Factory | Lost 3 parts (2p1n) 3773 | -5/Factory | Build established: Scavenger-Gunner 3821 | -5/Factory | Discovered new exit (range 10) 3862 | -5/Factory | Entered another Factory area 3862 | -4/Factory | Evolved 2 slots: Utility x1, Weapon x1 4636 | -4/Factory | Lost 5 parts (4n1w) 4943 | -4/Factory | Destroyed 8 combat bots 4950 | -4/Factory | Lost 5 parts (4n1w) 5109 | -4/Factory | Sucked down chute 5109 | -4/Factory | Entered Waste 5110 | -4/Waste | Joined by Warlord forces that had cleared the area 5305 | -4/Waste | Discovered new exit (range 11) 5355 | -4/Waste | Entered Factory 5355 | -4/Factory | Accompanied by 19 allies 5404 | -4/Factory | Garrison activated, responded to threat 5456 | -4/Factory | Lost 15 allies 5605 | -4/Factory | First assault squad dispatched 5691 | -4/Factory | Identified exit to Upper Caves 5857 | -4/Factory | Lost 14 parts (1p7n3u3w) 5900 | -4/Factory | Lost 3 parts (1p2w) 6059 | -4/Factory | Core integrity fell below 50% 6107 | -4/Factory | Lost 4 parts (3n1w) 6149 | -4/Factory | System corruption reached 10% 6155 | -4/Factory | Core integrity fell below 20% 6172 | -4/Factory | Destroyed by P-70 Sage with Tesla Rifle Last Messages --------------- 06087_ The unstable cave ceiling collapses. 06107_ System corrupted: Matter fused (-7). 06111_ Penetrated by Slug. 06111_ K-01 Serf collects debris. 06119_ Connecting with DSF Access... 06122_ Exp. Heat Sink destroyed. 06131_ Connecting with Terminal... 06132_ System corrupted: Matter fused (-5). 06132_ S-27 Virus destroyed. 06132_ Destroyed VTOL Module. 06132_ S-27 Virus destroyed. 06132_ Destroyed VTOL Module. 06132_ S-27 Virus destroyed. 06138_ Acquired Adv. Medium Treads. 06143_ Destroyed Antigrav System. 06151_ System corrupted: Heat flow error (+102). 06151_ Hacking Suite destroyed. 06160_ Adv. Medium Treads destroyed. 06162_ G-67 Veteran Plasma Rifle severed. 06166_ RSAPEZ RCUS6E&ASBY%A1V5/:U1QON Map ----- +----------------------------------------------------+ | ??????????????? ??# # """" """" #??????? | | ???????????????? ???# # """" """" #??????? | | ???????????????? ????# # #??????? | | ?????????????????#?????# # #??????? | | ???????????????????????# # #??????? | | ???????????????????????# ##############??????? | | ???????????????????????# #???????????????????? | | ??????????????####?????# #???????????????????? | | ?????????######T ####### #???????????????????? | | ?###+##### #???????????????????? | | +???????????????????? | | # ##### #???????????????????? | | ?????????# #???????????????????? | | ?????????# #???????????????????? | | ?????????# ########## ##???????????????????? | | ?????????# #????????# #????????????????????? | | ?????????# ######???# #????????????????????? | | ?????????+ # #???# #????????????????????? | | ?????????# # #??## ##???????? ?????????? | | ?????????# # #??# ###+### ????????? | | ?????????# # #### " =% %*%????????? | | ?????????# # + "T *%[????????? | | ?????????# # #### % ????????? | | ?????????# + #??# ######??????????????? | | ?????????# # #?####g#####?????????????????? | | ?????????# #! #?#! @[p #?????????????????? | | ?????????# ######?# """ #?????????????????? | | ???????? #??????# ! """ #?????????????????? | | ???????#####+###??????#! " #?????????????????? | | ??????????????????????# "F" #?????????????????? | | ??????????????????????#! """ #?????????????????? | | ??????????????????????# #?????????????????? | | ??????????????????????# [ / #?????????????????? | | ??????????????????????#! #?????????????????? | | ??????????????????????##########?????????????????? | | ?????????????????????????????????????????????????? | | ?????????????????????????????????????????????????? | | ?????????????????????????????????????????????????? | | ?????????????????????????????????????????????????? | | ?????????????????????????????????????????????????? | | | | | | | | | | | | | | | | | | | | | +----------------------------------------------------+ Best States ------------- Heat Dissipation 97 Energy Generation 34 Energy Capacity 560 Matter Stores 300 Matter Capacity 300 Sight Range 16 Terrain Scan Density 10 Additional Mass Support 6 Armor Coverage 300 Resistance: KI 20 Evasion (%) 55 Targeting Accuracy 5 Recoil Reduction 5 Offensive Hacking 20 Defensive Hacking 20 Item Schematics ----------------- None Robot Schematics ------------------ None Fabricated ------------ Nothing Alien Tech Used ----------------- None Achievements -------------- None Challenges ------------ None Game ------ Seed GuidedAlphaSuit Manual? 0 Play Time 01:20:26 Cumulative 238.6 hours Start 2024.12.22 @ 08:49:47 End 2025.01.17 @ 18:22:52 Sessions 9 Manual Loads 0 Difficulty Rogue Special Mode None Game No. 191 Rogue 191 Adventurer 0 Explorer 0 Win Type - Total 1 Types 1/0/0/0/0/0/0/0/0 Lore% 51 Gallery% 62 Achievement% 44 Wizard Run 0 Options --------- Layout 0 ASCII 0 Keyboard 1 Movement Numpad Keybinds 0 Fullscreen 1 Font 12/Terminus Map View 83x54 Zoom Use 0% Tactical HUD 1 Map Filters NONE Filters NONE Steam 1 RUN: 79fd4eb7-6e03-4c6b-9746-ec0787343690